[Event "Titled Tuesday Blitz March 21 Early 2023"]
[White "Melikhov, Evgeny V."]
[Black "Kozin, Yuri"]
[WhiteFideId "4122046"]
[BlackFideId "4129920"]
[WhiteElo "2158"]
[BlackElo "2539"]
[Result "1-0"]
[Round "04"]
[TimeControl "180+2"]
[Date "2023.03.21"]
[WhiteClock "0:00:11"]
[BlackClock "0:00:05"]

1. d4 {[%clk 0:03:00]}  d5 {[%clk 0:02:59]} 2. c4 {[%clk 0:03:01]}  c6 {[%clk 0:03:00]} 3. Nc3 {[%clk 0:03:01]}  Nf6 {[%clk 0:03:00]} 4. e3 {[%clk 0:03:01]}  Bf5 {[%clk 0:02:59]} 5. Nf3 {[%clk 0:03:01]}  e6 {[%clk 0:02:59]} 6. Nh4 {[%clk 0:03:02]}  Be4 {[%clk 0:02:59]} 7. f3 {[%clk 0:02:58]}  Bg6 {[%clk 0:02:59]} 8. Bd2 {[%clk 0:02:54]}  Nbd7 {[%clk 0:02:59]} 9. Qb3 {[%clk 0:02:49]}  Qc7 {[%clk 0:02:58]} 10. O-O-O {[%clk 0:02:29]}  Be7 {[%clk 0:02:53]} 11. Nxg6 {[%clk 0:02:28]}  hxg6 {[%clk 0:02:53]} 12. g3 {[%clk 0:02:23]}  dxc4 {[%clk 0:02:51]} 13. Bxc4 {[%clk 0:02:20]}  b5 {[%clk 0:02:51]} 14. Bd3 {[%clk 0:02:17]}  a5 {[%clk 0:02:51]} 15. Kb1 {[%clk 0:02:15]}  a4 {[%clk 0:02:50]} 16. Qc2 {[%clk 0:02:15]}  Qb7 {[%clk 0:02:30]} 17. Ne4 {[%clk 0:02:11]}  O-O {[%clk 0:02:21]} 18. Rc1 {[%clk 0:01:55]}  Rfc8 {[%clk 0:02:17]} 19. Ng5 {[%clk 0:01:47]}  b4 {[%clk 0:02:10]} 20. Bxg6 {[%clk 0:01:44]}  fxg6 {[%clk 0:01:51]} 21. Qxg6 {[%clk 0:01:42]}  Nf8 {[%clk 0:01:31]} 22. Qf7+ {[%clk 0:01:41]}  Kh8 {[%clk 0:01:31]} 23. Nxe6 {[%clk 0:01:40]}  Nxe6 {[%clk 0:01:25]} 24. Qxe6 {[%clk 0:01:40]}  b3 {[%clk 0:01:01]} 25. a3 {[%clk 0:01:40]}  Qd7 {[%clk 0:00:59]} 26. Qxd7 {[%clk 0:01:32]}  Nxd7 {[%clk 0:00:58]} 27. e4 {[%clk 0:01:32]}  c5 {[%clk 0:00:51]} 28. d5 {[%clk 0:01:32]}  Ne5 {[%clk 0:00:47]} 29. f4 {[%clk 0:01:24]}  Nd3 {[%clk 0:00:45]} 30. Rc4 {[%clk 0:01:15]}  Bf6 {[%clk 0:00:25]} 31. e5 {[%clk 0:01:10]}  Bd8 {[%clk 0:00:20]} 32. Be3 {[%clk 0:01:05]}  Ba5 {[%clk 0:00:15]} 33. Rd1 {[%clk 0:01:03]}  Nb4 {[%clk 0:00:16]} 34. axb4 {[%clk 0:00:54]}  Bxb4 {[%clk 0:00:16]} 35. Rdc1 {[%clk 0:00:40]}  a3 {[%clk 0:00:12]} 36. Bxc5 {[%clk 0:00:39]}  a2+ {[%clk 0:00:11]} 37. Ka1 {[%clk 0:00:39]}  Bxc5 {[%clk 0:00:10]} 38. Rxc5 {[%clk 0:00:39]}  Re8 {[%clk 0:00:10]} 39. d6 {[%clk 0:00:34]}  Rad8 {[%clk 0:00:09]} 40. Rb5 {[%clk 0:00:25]}  g5 {[%clk 0:00:09]} 41. Rxb3 {[%clk 0:00:24]}  gxf4 {[%clk 0:00:09]} 42. gxf4 {[%clk 0:00:25]}  Rf8 {[%clk 0:00:09]} 43. Rb4 {[%clk 0:00:22]}  Kg7 {[%clk 0:00:08]} 44. Kxa2 {[%clk 0:00:21]}  Kf7 {[%clk 0:00:09]} 45. Rc7+ {[%clk 0:00:21]}  Ke6 {[%clk 0:00:09]} 46. Re7+ {[%clk 0:00:21]}  Kd5 {[%clk 0:00:08]} 47. Rbb7 {[%clk 0:00:19]}  Rxf4 {[%clk 0:00:08]} 48. d7 {[%clk 0:00:17]}  Kc6 {[%clk 0:00:07]} 49. Ra7 {[%clk 0:00:16]}  Rd4 {[%clk 0:00:06]} 50. e6 {[%clk 0:00:15]}  Rb8 {[%clk 0:00:05]} 51. Re8 {[%clk 0:00:14]}  Rb5 {[%clk 0:00:02]} 52. d8=Q {[%clk 0:00:13]}  Rxd8 {[%clk 0:00:03]} 53. Rxd8 {[%clk 0:00:13]}  Re5 {[%clk 0:00:04]} 54. e7 {[%clk 0:00:13]}  Kb6 {[%clk 0:00:04]} 55. e8=Q {[%clk 0:00:11]}  Rxe8 {[%clk 0:00:04]} 56. Rxe8 {[%clk 0:00:11]}  Kxa7 {[%clk 0:00:05]} 1-0


[Site "https://www.chess.com"]

[Event "Titled Tuesday Blitz March 21 Early 2023"]
[White "TimGrutter03"]
[Black "Mirzanurov, Bulat"]
[BlackFideId "4184521"]
[WhiteElo "2532"]
[BlackElo "2019"]
[Result "1-0"]
[Round "04"]
[TimeControl "180+2"]
[Date "2023.03.21"]
[WhiteClock "0:00:10"]
[BlackClock "0:00:13"]

1. e4 {[%clk 0:03:00]}  c5 {[%clk 0:02:59]} 2. Nf3 {[%clk 0:03:01]}  d6 {[%clk 0:02:56]} 3. d4 {[%clk 0:02:59]}  cxd4 {[%clk 0:02:57]} 4. Nxd4 {[%clk 0:02:59]}  Nf6 {[%clk 0:02:58]} 5. Nc3 {[%clk 0:02:59]}  a6 {[%clk 0:02:56]} 6. h4 {[%clk 0:02:59]}  e5 {[%clk 0:02:55]} 7. Nb3 {[%clk 0:02:58]}  h5 {[%clk 0:02:52]} 8. Bg5 {[%clk 0:02:56]}  Be6 {[%clk 0:02:51]} 9. Qd2 {[%clk 0:02:55]}  Nbd7 {[%clk 0:02:47]} 10. O-O-O {[%clk 0:02:54]}  Be7 {[%clk 0:02:46]} 11. f4 {[%clk 0:02:49]}  exf4 {[%clk 0:02:41]} 12. Bxf4 {[%clk 0:02:50]}  Ne5 {[%clk 0:02:40]} 13. Qe1 {[%clk 0:02:42]}  Qc7 {[%clk 0:02:27]} 14. Nd4 {[%clk 0:02:33]}  Bd7 {[%clk 0:02:17]} 15. Bg5 {[%clk 0:02:22]}  Neg4 {[%clk 0:02:11]} 16. Nd5 {[%clk 0:02:10]}  Nxd5 {[%clk 0:02:11]} 17. exd5 {[%clk 0:02:11]}  Ne5 {[%clk 0:02:02]} 18. Bd3 {[%clk 0:01:42]}  Bxg5+ {[%clk 0:01:56]} 19. hxg5 {[%clk 0:01:42]}  O-O-O {[%clk 0:01:55]} 20. Bf5 {[%clk 0:01:34]}  g6 {[%clk 0:01:49]} 21. Bxd7+ {[%clk 0:01:32]}  Qxd7 {[%clk 0:01:50]} 22. Rh3 {[%clk 0:01:29]}  Qg4 {[%clk 0:01:48]} 23. Rg3 {[%clk 0:01:20]}  Qf4+ {[%clk 0:01:45]} 24. Kb1 {[%clk 0:01:20]}  h4 {[%clk 0:01:42]} 25. Rb3 {[%clk 0:01:15]}  Qxg5 {[%clk 0:01:37]} 26. Qa5 {[%clk 0:01:12]}  Qe7 {[%clk 0:01:35]} 27. Nc6 {[%clk 0:01:02]}  Qc7 {[%clk 0:01:16]} 28. Qxc7+ {[%clk 0:01:01]}  Kxc7 {[%clk 0:01:15]} 29. Nxd8 {[%clk 0:01:02]}  Rxd8 {[%clk 0:01:15]} 30. Rh1 {[%clk 0:00:57]}  Rh8 {[%clk 0:01:11]} 31. Rbh3 {[%clk 0:00:52]}  g5 {[%clk 0:01:10]} 32. g3 {[%clk 0:00:52]}  Ng6 {[%clk 0:01:09]} 33. gxh4 {[%clk 0:00:52]}  gxh4 {[%clk 0:01:09]} 34. Rf1 {[%clk 0:00:50]}  Rh7 {[%clk 0:01:06]} 35. c4 {[%clk 0:00:46]}  Kd7 {[%clk 0:01:00]} 36. Kc2 {[%clk 0:00:44]}  Ne5 {[%clk 0:00:51]} 37. Rf4 {[%clk 0:00:40]}  Ng6 {[%clk 0:00:50]} 38. Rg4 {[%clk 0:00:33]}  Rh5 {[%clk 0:00:47]} 39. b4 {[%clk 0:00:30]}  Rf5 {[%clk 0:00:46]} 40. Kc3 {[%clk 0:00:24]}  Rf2 {[%clk 0:00:45]} 41. a4 {[%clk 0:00:23]}  Ra2 {[%clk 0:00:43]} 42. Kb3 {[%clk 0:00:23]}  Ra1 {[%clk 0:00:38]} 43. c5 {[%clk 0:00:20]}  Rb1+ {[%clk 0:00:36]} 44. Kc2 {[%clk 0:00:19]}  Re1 {[%clk 0:00:32]} 45. Kd2 {[%clk 0:00:17]}  Re5 {[%clk 0:00:31]} 46. Rd3 {[%clk 0:00:18]}  Rh5 {[%clk 0:00:29]} 47. Rg1 {[%clk 0:00:09]}  Nf4 {[%clk 0:00:26]} 48. Rf3 {[%clk 0:00:08]}  Rxd5+ {[%clk 0:00:22]} 49. Ke3 {[%clk 0:00:08]}  Ne6 {[%clk 0:00:22]} 50. Rxf7+ {[%clk 0:00:08]}  Kc6 {[%clk 0:00:22]} 51. cxd6 {[%clk 0:00:07]}  Rxd6 {[%clk 0:00:18]} 52. Rh7 {[%clk 0:00:07]}  Nc7 {[%clk 0:00:16]} 53. Rxh4 {[%clk 0:00:06]}  Nd5+ {[%clk 0:00:16]} 54. Kd4 {[%clk 0:00:04]}  Nxb4+ {[%clk 0:00:14]} 55. Kc4 {[%clk 0:00:04]}  Nd5 {[%clk 0:00:13]} 56. Rhh1 {[%clk 0:00:03]}  Nb6+ {[%clk 0:00:11]} 57. Kb3 {[%clk 0:00:03]}  Nd5 {[%clk 0:00:11]} 58. Rc1+ {[%clk 0:00:02]}  Kb6 {[%clk 0:00:11]} 59. Rhd1 {[%clk 0:00:03]}  Rd7 {[%clk 0:00:07]} 60. Rd3 {[%clk 0:00:03]}  Nf6 {[%clk 0:00:06]} 61. Rf3 {[%clk 0:00:04]}  Nd5 {[%clk 0:00:05]} 62. Rd1 {[%clk 0:00:05]}  Nf6 {[%clk 0:00:05]} 63. Rxf6+ {[%clk 0:00:05]}  Kc7 {[%clk 0:00:04]} 64. Rxd7+ {[%clk 0:00:05]}  Kxd7 {[%clk 0:00:05]} 65. a5 {[%clk 0:00:06]}  Kc7 {[%clk 0:00:06]} 66. Rb6 {[%clk 0:00:06]}  Kb8 {[%clk 0:00:07]} 67. Kc4 {[%clk 0:00:07]}  Ka7 {[%clk 0:00:08]} 68. Kd5 {[%clk 0:00:07]}  Kb8 {[%clk 0:00:08]} 69. Kd6 {[%clk 0:00:08]}  Ka7 {[%clk 0:00:09]} 70. Kc7 {[%clk 0:00:08]}  Ka8 {[%clk 0:00:10]} 71. Kc8 {[%clk 0:00:08]}  Ka7 {[%clk 0:00:11]} 72. Rxb7+ {[%clk 0:00:09]}  Ka8 {[%clk 0:00:12]} 73. Rb6 {[%clk 0:00:09]}  Ka7 {[%clk 0:00:12]} 74. Kc7 {[%clk 0:00:09]}  Ka8 {[%clk 0:00:13]} 75. Rxa6# {[%clk 0:00:10]} 1-0


[Site "https://www.chess.com"]

[Event "Titled Tuesday Blitz March 21 Early 2023"]
[White "Degenbaev, Aziz"]
[Black "Rosenberg, Evan S"]
[WhiteFideId "13802640"]
[BlackFideId "2019299"]
[WhiteElo "2152"]
[BlackElo "2318"]
[Result "1-0"]
[Round "04"]
[TimeControl "180+2"]
[Date "2023.03.21"]
[WhiteClock "0:01:51"]
[BlackClock "0:02:37"]

1. e4 {[%clk 0:03:00]}  e5 {[%clk 0:02:59]} 2. Nf3 {[%clk 0:03:00]}  Nc6 {[%clk 0:03:00]} 3. d4 {[%clk 0:03:01]}  exd4 {[%clk 0:03:00]} 4. Nxd4 {[%clk 0:03:02]}  Bb4+ {[%clk 0:03:00]} 5. c3 {[%clk 0:03:01]}  Bc5 {[%clk 0:03:01]} 6. Be3 {[%clk 0:02:50]}  Bb6 {[%clk 0:03:01]} 7. Nf5 {[%clk 0:02:46]}  g6 {[%clk 0:03:01]} 8. Bxb6 {[%clk 0:02:43]}  axb6 {[%clk 0:03:01]} 9. Ne3 {[%clk 0:02:44]}  Nf6 {[%clk 0:03:02]} 10. f3 {[%clk 0:02:40]}  O-O {[%clk 0:03:02]} 11. c4 {[%clk 0:02:41]}  d5 {[%clk 0:03:02]} 12. cxd5 {[%clk 0:02:35]}  Nxe4 {[%clk 0:03:02]} 13. fxe4 {[%clk 0:02:36]}  Qh4+ {[%clk 0:03:02]} 14. Kd2 {[%clk 0:02:34]}  Qxe4 {[%clk 0:03:02]} 15. Bd3 {[%clk 0:02:32]}  Qd4 {[%clk 0:03:02]} 16. Qb3 {[%clk 0:02:30]}  Re8 {[%clk 0:03:02]} 17. Re1 {[%clk 0:02:29]}  Ne5 {[%clk 0:03:01]} 18. Na3 {[%clk 0:02:29]}  Bd7 {[%clk 0:02:58]} 19. Nac2 {[%clk 0:02:26]}  Qf4 {[%clk 0:02:56]} 20. Qc3 {[%clk 0:02:25]}  Nxd3 {[%clk 0:02:41]} 21. Qxd3 {[%clk 0:02:07]}  Qxh2 {[%clk 0:02:40]} 22. Rh1 {[%clk 0:01:53]}  Qf4 {[%clk 0:02:40]} 23. Raf1 {[%clk 0:01:52]}  Qb4+ {[%clk 0:02:37]} 24. Nxb4 {[%clk 0:01:51]} 1-0


[Site "https://www.chess.com"]

[Event "Titled Tuesday Blitz March 21 Early 2023"]
[White "Lehtosaari, Mauri"]
[Black "Hernandez Leon, Alberto"]
[WhiteFideId "501999"]
[BlackFideId "2272555"]
[WhiteElo "2518"]
[BlackElo "2239"]
[Result "1-0"]
[Round "04"]
[TimeControl "180+2"]
[Date "2023.03.21"]
[WhiteClock "0:00:15"]
[BlackClock "0:00:01"]

1. d4 {[%clk 0:03:00]}  d5 {[%clk 0:02:59]} 2. Nf3 {[%clk 0:03:01]}  Nf6 {[%clk 0:02:58]} 3. Bg5 {[%clk 0:03:01]}  e6 {[%clk 0:02:57]} 4. Nbd2 {[%clk 0:03:01]}  Be7 {[%clk 0:02:54]} 5. e3 {[%clk 0:03:01]}  h6 {[%clk 0:02:55]} 6. Bh4 {[%clk 0:03:01]}  Ne4 {[%clk 0:02:50]} 7. Bxe7 {[%clk 0:02:56]}  Qxe7 {[%clk 0:02:50]} 8. Nxe4 {[%clk 0:02:56]}  dxe4 {[%clk 0:02:51]} 9. Nd2 {[%clk 0:02:57]}  f5 {[%clk 0:02:47]} 10. Bc4 {[%clk 0:02:46]}  Nd7 {[%clk 0:02:41]} 11. O-O {[%clk 0:02:30]}  Nf6 {[%clk 0:02:36]} 12. f3 {[%clk 0:02:21]}  exf3 {[%clk 0:02:33]} 13. Nxf3 {[%clk 0:02:20]}  Bd7 {[%clk 0:01:48]} 14. Ne5 {[%clk 0:02:18]}  O-O-O {[%clk 0:01:43]} 15. c3 {[%clk 0:01:49]}  Rhg8 {[%clk 0:01:02]} 16. a4 {[%clk 0:01:33]}  Kb8 {[%clk 0:00:57]} 17. a5 {[%clk 0:01:31]}  Ne4 {[%clk 0:00:49]} 18. Bd3 {[%clk 0:01:25]}  Qh4 {[%clk 0:00:36]} 19. Rf4 {[%clk 0:01:15]}  Qe7 {[%clk 0:00:27]} 20. Bxe4 {[%clk 0:01:12]}  g5 {[%clk 0:00:27]} 21. Rf1 {[%clk 0:01:01]}  fxe4 {[%clk 0:00:27]} 22. Rf7 {[%clk 0:00:55]}  Qe8 {[%clk 0:00:25]} 23. Qb3 {[%clk 0:00:49]}  Ka8 {[%clk 0:00:21]} 24. Raf1 {[%clk 0:00:44]}  Bb5 {[%clk 0:00:17]} 25. Rxc7 {[%clk 0:00:36]}  Kb8 {[%clk 0:00:08]} 26. Rff7 {[%clk 0:00:34]}  Rf8 {[%clk 0:00:04]} 27. Rxb7+ {[%clk 0:00:32]}  Ka8 {[%clk 0:00:04]} 28. Rxa7+ {[%clk 0:00:32]}  Kb8 {[%clk 0:00:04]} 29. Rxf8 {[%clk 0:00:18]}  Qxf8 {[%clk 0:00:04]} 30. Qxb5+ {[%clk 0:00:14]}  Kxa7 {[%clk 0:00:04]} 31. Nc6+ {[%clk 0:00:14]}  Ka8 {[%clk 0:00:01]} 32. Qa6# {[%clk 0:00:15]} 1-0


[Site "https://www.chess.com"]

[Event "Titled Tuesday Blitz March 21 Early 2023"]
[White "Hernandez Jimenez, Alexander Andres"]
[Black "Santos Flores, Alberto"]
[WhiteFideId "3900452"]
[BlackFideId "3601234"]
[WhiteElo "2112"]
[BlackElo "2235"]
[Result "0-1"]
[Round "04"]
[TimeControl "180+2"]
[Date "2023.03.21"]
[WhiteClock "0:01:17"]
[BlackClock "0:01:31"]

1. e4 {[%clk 0:03:00]}  c5 {[%clk 0:02:50]} 2. Nf3 {[%clk 0:02:58]}  Nc6 {[%clk 0:02:48]} 3. d4 {[%clk 0:02:58]}  cxd4 {[%clk 0:02:47]} 4. Nxd4 {[%clk 0:02:58]}  g6 {[%clk 0:02:48]} 5. Nc3 {[%clk 0:02:55]}  Bg7 {[%clk 0:02:42]} 6. Nb3 {[%clk 0:02:54]}  Bxc3+ {[%clk 0:02:41]} 7. bxc3 {[%clk 0:02:53]}  Nf6 {[%clk 0:02:42]} 8. Bd3 {[%clk 0:02:49]}  d5 {[%clk 0:02:39]} 9. exd5 {[%clk 0:02:46]}  Qxd5 {[%clk 0:02:37]} 10. O-O {[%clk 0:02:45]}  O-O {[%clk 0:02:37]} 11. Bh6 {[%clk 0:02:38]}  Rd8 {[%clk 0:02:36]} 12. Qe2 {[%clk 0:02:38]}  Qd6 {[%clk 0:02:27]} 13. h3 {[%clk 0:02:27]}  Qe5 {[%clk 0:02:10]} 14. Qxe5 {[%clk 0:01:57]}  Nxe5 {[%clk 0:02:10]} 15. Nd4 {[%clk 0:01:48]}  Nxd3 {[%clk 0:02:00]} 16. cxd3 {[%clk 0:01:49]}  e5 {[%clk 0:02:00]} 17. Nb5 {[%clk 0:01:49]}  Rxd3 {[%clk 0:01:58]} 18. Nc7 {[%clk 0:01:42]}  Rb8 {[%clk 0:01:57]} 19. Be3 {[%clk 0:01:41]}  b6 {[%clk 0:01:55]} 20. Rfd1 {[%clk 0:01:39]}  Bf5 {[%clk 0:01:47]} 21. Rxd3 {[%clk 0:01:36]}  Bxd3 {[%clk 0:01:48]} 22. Rd1 {[%clk 0:01:35]}  e4 {[%clk 0:01:43]} 23. f3 {[%clk 0:01:32]}  Rc8 {[%clk 0:01:41]} 24. Bf4 {[%clk 0:01:32]}  Nh5 {[%clk 0:01:36]} 25. Bh2 {[%clk 0:01:31]}  f5 {[%clk 0:01:36]} 26. fxe4 {[%clk 0:01:22]}  fxe4 {[%clk 0:01:35]} 27. Kf2 {[%clk 0:01:21]}  Kf7 {[%clk 0:01:32]} 28. Ke3 {[%clk 0:01:21]}  Ng7 {[%clk 0:01:33]} 29. Rd2 {[%clk 0:01:19]}  Nf5+ {[%clk 0:01:31]} 30. Kf4 {[%clk 0:01:17]}  Rxc7 {[%clk 0:01:31]} 0-1


[Site "https://www.chess.com"]

[Event "Titled Tuesday Blitz March 21 Early 2023"]
[White "Pham, Le Thao Nguyen"]
[Black "Fabris, Alberto"]
[WhiteFideId "12401226"]
[BlackFideId "801348"]
[WhiteElo "2282"]
[BlackElo "2205"]
[Result "1-0"]
[Round "04"]
[TimeControl "180+2"]
[Date "2023.03.21"]
[WhiteClock "0:01:10"]
[BlackClock "0:01:11"]

1. d4 {[%clk 0:02:53]}  Nf6 {[%clk 0:02:59]} 2. Nf3 {[%clk 0:02:53]}  e6 {[%clk 0:02:59]} 3. Bf4 {[%clk 0:02:52]}  b6 {[%clk 0:03:00]} 4. e3 {[%clk 0:02:53]}  Bb7 {[%clk 0:03:00]} 5. Nbd2 {[%clk 0:02:53]}  c5 {[%clk 0:02:59]} 6. Nc4 {[%clk 0:02:51]}  d5 {[%clk 0:02:55]} 7. Nce5 {[%clk 0:02:50]}  a6 {[%clk 0:02:49]} 8. Ng5 {[%clk 0:02:49]}  Nbd7 {[%clk 0:02:10]} 9. Nexf7 {[%clk 0:02:41]}  Qe7 {[%clk 0:02:07]} 10. Nd6+ {[%clk 0:02:25]}  Qxd6 {[%clk 0:02:06]} 11. Bxd6 {[%clk 0:02:26]}  Bxd6 {[%clk 0:02:07]} 12. Nxe6 {[%clk 0:02:26]}  Kf7 {[%clk 0:02:03]} 13. Ng5+ {[%clk 0:02:24]}  Kg6 {[%clk 0:01:58]} 14. h4 {[%clk 0:02:11]}  Ne4 {[%clk 0:01:52]} 15. Bd3 {[%clk 0:02:00]}  h6 {[%clk 0:01:48]} 16. Bxe4+ {[%clk 0:01:56]}  dxe4 {[%clk 0:01:46]} 17. dxc5 {[%clk 0:01:56]}  hxg5 {[%clk 0:01:41]} 18. Qxd6+ {[%clk 0:01:37]}  Nf6 {[%clk 0:01:40]} 19. O-O-O {[%clk 0:01:31]}  bxc5 {[%clk 0:01:37]} 20. hxg5 {[%clk 0:01:29]}  Kxg5 {[%clk 0:01:31]} 21. Qe7 {[%clk 0:01:17]}  Rxh1 {[%clk 0:01:18]} 22. Rxh1 {[%clk 0:01:15]}  Bd5 {[%clk 0:01:11]} 23. Qxg7+ {[%clk 0:01:10]}  Kf5 {[%clk 0:01:11]} 24. Rh6 {[%clk 0:01:10]} 1-0


[Site "https://www.chess.com"]

[Event "Titled Tuesday Blitz March 21 Early 2023"]
[White "Hernandez Bonilla, Amelia"]
[Black "Shapiro, Viktor"]
[WhiteFideId "3900193"]
[BlackFideId "4175700"]
[WhiteElo "2195"]
[BlackElo "2152"]
[Result "0-1"]
[Round "04"]
[TimeControl "180+2"]
[Date "2023.03.21"]
[WhiteClock "0:00:30"]
[BlackClock "0:00:22"]

1. d4 {[%clk 0:03:00]}  Nf6 {[%clk 0:02:58]} 2. Bf4 {[%clk 0:03:00]}  e6 {[%clk 0:02:56]} 3. e3 {[%clk 0:02:59]}  d5 {[%clk 0:02:56]} 4. Nf3 {[%clk 0:02:58]}  Bd6 {[%clk 0:02:56]} 5. Ne5 {[%clk 0:02:58]}  O-O {[%clk 0:02:51]} 6. Bd3 {[%clk 0:02:57]}  c5 {[%clk 0:02:51]} 7. c3 {[%clk 0:02:57]}  Nc6 {[%clk 0:02:51]} 8. Bg3 {[%clk 0:02:53]}  Qc7 {[%clk 0:02:49]} 9. f4 {[%clk 0:02:51]}  Ne7 {[%clk 0:02:46]} 10. Bh4 {[%clk 0:02:40]}  Nf5 {[%clk 0:02:42]} 11. Bxf5 {[%clk 0:02:33]}  exf5 {[%clk 0:02:41]} 12. Bxf6 {[%clk 0:02:21]}  gxf6 {[%clk 0:02:41]} 13. Nf3 {[%clk 0:02:21]}  Re8 {[%clk 0:02:40]} 14. Kf2 {[%clk 0:02:18]}  Bd7 {[%clk 0:02:27]} 15. Re1 {[%clk 0:02:17]}  Re7 {[%clk 0:02:08]} 16. Nbd2 {[%clk 0:02:16]}  Rae8 {[%clk 0:02:07]} 17. Nf1 {[%clk 0:02:15]}  Re4 {[%clk 0:01:56]} 18. Ng3 {[%clk 0:02:12]}  Qb6 {[%clk 0:01:50]} 19. Qc2 {[%clk 0:02:05]}  c4 {[%clk 0:01:40]} 20. Rab1 {[%clk 0:02:03]}  Qa6 {[%clk 0:01:35]} 21. Nxe4 {[%clk 0:01:59]}  fxe4 {[%clk 0:01:33]} 22. Nh4 {[%clk 0:01:50]}  f5 {[%clk 0:01:31]} 23. Qe2 {[%clk 0:01:46]}  Be7 {[%clk 0:01:29]} 24. Qh5 {[%clk 0:01:46]}  Qf6 {[%clk 0:01:28]} 25. g3 {[%clk 0:01:44]}  Kh8 {[%clk 0:01:28]} 26. b3 {[%clk 0:01:33]}  b5 {[%clk 0:01:22]} 27. bxc4 {[%clk 0:01:32]}  dxc4 {[%clk 0:01:22]} 28. a4 {[%clk 0:01:29]}  a6 {[%clk 0:01:11]} 29. axb5 {[%clk 0:01:29]}  axb5 {[%clk 0:01:12]} 30. Ra1 {[%clk 0:01:28]}  b4 {[%clk 0:01:00]} 31. cxb4 {[%clk 0:01:27]}  Bxb4 {[%clk 0:01:00]} 32. Reb1 {[%clk 0:01:27]}  Bf8 {[%clk 0:00:57]} 33. Ra7 {[%clk 0:01:26]}  Be6 {[%clk 0:00:57]} 34. Rb6 {[%clk 0:01:22]}  Rd8 {[%clk 0:00:54]} 35. Ra5 {[%clk 0:01:19]}  Rxd4 {[%clk 0:00:51]} 36. Nxf5 {[%clk 0:01:00]}  Rd2+ {[%clk 0:00:50]} 37. Ke1 {[%clk 0:00:59]}  Qc3 {[%clk 0:00:50]} 38. Rb1 {[%clk 0:00:34]}  Rb2+ {[%clk 0:00:40]} 39. Kf1 {[%clk 0:00:31]}  Rxb1+ {[%clk 0:00:36]} 40. Kg2 {[%clk 0:00:31]}  Qxa5 {[%clk 0:00:27]} 41. Nd4 {[%clk 0:00:30]}  Qxh5 {[%clk 0:00:22]} 0-1


[Site "https://www.chess.com"]

[Event "Titled Tuesday Blitz March 21 Early 2023"]
[White "Rose, Felix"]
[Black "Belov, Alexei"]
[WhiteFideId "5105722"]
[BlackFideId "4128206"]
[WhiteElo "2039"]
[BlackElo "2494"]
[Result "1/2-1/2"]
[Round "04"]
[TimeControl "180+2"]
[Date "2023.03.21"]
[WhiteClock "0:00:16"]
[BlackClock "0:00:37"]

1. e4 {[%clk 0:02:59]}  e6 {[%clk 0:02:59]} 2. d4 {[%clk 0:02:59]}  d5 {[%clk 0:02:59]} 3. Nc3 {[%clk 0:02:59]}  Nf6 {[%clk 0:02:59]} 4. e5 {[%clk 0:03:00]}  Ne4 {[%clk 0:03:00]} 5. Nxe4 {[%clk 0:02:58]}  dxe4 {[%clk 0:03:00]} 6. Bc4 {[%clk 0:02:58]}  a6 {[%clk 0:03:00]} 7. c3 {[%clk 0:02:55]}  b5 {[%clk 0:03:00]} 8. Bb3 {[%clk 0:02:55]}  Bb7 {[%clk 0:03:00]} 9. Qe2 {[%clk 0:02:52]}  c5 {[%clk 0:02:58]} 10. Be3 {[%clk 0:02:49]}  cxd4 {[%clk 0:02:54]} 11. cxd4 {[%clk 0:02:42]}  Bb4+ {[%clk 0:02:53]} 12. Kf1 {[%clk 0:02:42]}  Nc6 {[%clk 0:02:46]} 13. Rd1 {[%clk 0:02:41]}  Ne7 {[%clk 0:02:45]} 14. Nh3 {[%clk 0:02:37]}  O-O {[%clk 0:02:44]} 15. Qh5 {[%clk 0:02:19]}  Nf5 {[%clk 0:02:31]} 16. g4 {[%clk 0:01:57]}  Nxe3+ {[%clk 0:02:26]} 17. fxe3 {[%clk 0:01:57]}  Rc8 {[%clk 0:02:15]} 18. Ng5 {[%clk 0:01:53]}  h6 {[%clk 0:02:15]} 19. Nh3 {[%clk 0:01:53]}  Be7 {[%clk 0:02:10]} 20. Rg1 {[%clk 0:01:37]}  Bg5 {[%clk 0:02:01]} 21. Rg3 {[%clk 0:01:32]}  Bd5 {[%clk 0:01:59]} 22. Nf2 {[%clk 0:01:28]}  f6 {[%clk 0:01:35]} 23. h4 {[%clk 0:01:22]}  Bxe3 {[%clk 0:01:27]} 24. Rxe3 {[%clk 0:01:20]}  fxe5 {[%clk 0:01:23]} 25. Bxd5 {[%clk 0:00:56]}  exd5 {[%clk 0:01:22]} 26. dxe5 {[%clk 0:00:48]}  Rc2 {[%clk 0:01:19]} 27. Re2 {[%clk 0:00:39]}  Qc7 {[%clk 0:01:13]} 28. g5 {[%clk 0:00:30]}  e3 {[%clk 0:01:07]} 29. gxh6 {[%clk 0:00:20]}  Rxf2+ {[%clk 0:01:04]} 30. Rxf2 {[%clk 0:00:19]}  Rxf2+ {[%clk 0:01:03]} 31. Kg1 {[%clk 0:00:16]}  Rxb2 {[%clk 0:00:39]} 32. h7+ {[%clk 0:00:14]}  Kh8 {[%clk 0:00:38]} 33. Qe8+ {[%clk 0:00:14]}  Kxh7 {[%clk 0:00:37]} 34. Qh5+ {[%clk 0:00:15]}  Kg8 {[%clk 0:00:38]} 35. Qe8+ {[%clk 0:00:15]}  Kh7 {[%clk 0:00:37]} 36. Qh5+ {[%clk 0:00:15]}  Kg8 {[%clk 0:00:37]} 37. Qe8+ {[%clk 0:00:16]}  Kh7 {[%clk 0:00:37]} 1/2-1/2


[Site "https://www.chess.com"]

[Event "Titled Tuesday Blitz March 21 Early 2023"]
[White "Stelmaszyk, Nico"]
[Black "Palacio,Igor Da Paz"]
[WhiteFideId "16200462"]
[BlackFideId "2121140"]
[WhiteElo "2255"]
[BlackElo "2126"]
[Result "0-1"]
[Round "04"]
[TimeControl "180+2"]
[Date "2023.03.21"]
[WhiteClock "0:01:56"]
[BlackClock "0:01:34"]

1. e4 {[%clk 0:03:00]}  d6 {[%clk 0:02:59]} 2. d4 {[%clk 0:02:59]}  Nf6 {[%clk 0:03:00]} 3. Nc3 {[%clk 0:02:59]}  g6 {[%clk 0:03:00]} 4. f4 {[%clk 0:02:57]}  Bg7 {[%clk 0:02:58]} 5. Nf3 {[%clk 0:02:57]}  O-O {[%clk 0:02:57]} 6. Be3 {[%clk 0:02:57]}  b6 {[%clk 0:02:56]} 7. h3 {[%clk 0:02:56]}  c5 {[%clk 0:02:54]} 8. d5 {[%clk 0:02:55]}  a6 {[%clk 0:02:42]} 9. a4 {[%clk 0:02:53]}  Bb7 {[%clk 0:02:40]} 10. Bd3 {[%clk 0:02:52]}  e6 {[%clk 0:02:40]} 11. dxe6 {[%clk 0:02:42]}  fxe6 {[%clk 0:02:38]} 12. O-O {[%clk 0:02:43]}  d5 {[%clk 0:02:33]} 13. exd5 {[%clk 0:02:26]}  exd5 {[%clk 0:02:32]} 14. Ng5 {[%clk 0:02:26]}  h6 {[%clk 0:01:55]} 15. Ne6 {[%clk 0:02:14]}  Qe8 {[%clk 0:01:55]} 16. Nxf8 {[%clk 0:02:02]}  Qxe3+ {[%clk 0:01:54]} 17. Kh1 {[%clk 0:02:03]}  d4 {[%clk 0:01:37]} 18. Nxg6 {[%clk 0:01:56]}  Qxh3+ {[%clk 0:01:34]} 0-1


[Site "https://www.chess.com"]